Cogmind - Beta 15 @@@ ROGUE MODE // 2025.07.25 @ 21:15:26 Player: McSaucyNugget Result: Destroyed by X-77 Beamer with Gatling Laser Performance ------------- Evolutions (6) 3000 Regions Visited (17) 3400 Robots Destroyed (324) 1620 Value Destroyed (14253) 14253 Prototype IDs (14) 280 Alien Tech Used (0) 0 Bonus (8757) 8757 TOTAL SCORE: 31310 Bonus ------- High Alert Combat Kills 3032 Follower Combat Kills 2261 Entered Garrisons 1000 Used RIF Installer 2500 Friendly Fire -36 Cogmind --------- Core Integrity 0/1150 Matter 223/300 Energy 100/100 System Corruption 31% Temperature Cool (18) Movement Core (1350) Ox26 Location -4/Factory Parts ------- > --- POWER (2) -------- (None) > --- PROPULSION (5) --- (None) > --- UTILITY (8) ------ Huge Storage Unit Improved Targeting Computer > --- WEAPON (4) ------- (None) > --- INVENTORY (25) --- Myomer Leg Myomer Leg Myomer Leg Improved Cooling System Matter Compressor (186) Improved Kinecellerator Advanced Transmission Jammer Damper Plating Improved Shield Generator Hacking Suite Relay Coupler [Sentry] (21) Variable Charge Gun Coil Gun Hypervelocity Coil Gun Scatter Rocket Array Improved Remote Datajack Peak State ------------ > --- POWER ------------ Antimatter Reactor Light Antimatter Reactor > --- PROPULSION ------- Medium Treads Improved Heavy Treads Heavy Siege Treads > --- UTILITY ---------- Huge Storage Unit Advanced Terrain Scan Processor Improved Targeting Computer Core Analyzer Damper Plating > --- WEAPON ----------- Heavy Phase Cannon Coil Gun KE Penetrator Hypervelocity Coil Gun > --- INVENTORY -------- Antimatter Reactor Particle Reactor Medium Treads Improved Medium Treads Improved Medium Treads Advanced Heat Sink Advanced Heat Sink Matter Compressor Improved Kinecellerator Graphene Brace High-powered Tractor Beam High-powered Shock Rifle Tesla Rifle Cooled Particle Cannon Matter Neutralizer High-powered Shotgun Coil Gun Hypervelocity Coil Gun Heavy Shock Bomb Launcher Scatter Rocket Array Improved Remote Datajack [Rating: 115] Favorites ----------- Power Ion Engine Engine Ion Engine Power Core Neutrino Core Reactor Antimatter Reactor Propulsion Light Treads Treads Light Treads Leg Myomer Leg Wheel Wheel Utility Huge Storage Unit Device Advanced Heat Sink Storage Huge Storage Unit Processor Improved Targeting Computer Hackware Relay Coupler [Grunt] Protection Improved Medium Armor Plating Weapon Minigun Energy Gun Gatling Laser Energy Cannon Advanced Beam Cannon Ballistic Gun Minigun Ballistic Cannon Improved Light Cannon Launcher Heavy Shock Bomb Launcher Special Weapon Remote Datajack Build | -11 -10 -10 -9 -9 -9 -9 -7 -7 -6 -6 -6 -6 -5 -5 -5 -5 -4 ------- Run | Yrd Mat Min Mat Sto Gar Rec Fac Gar Fac Gar Fac Gar Fac Was Fac Gar Fac Slots Evolved 12 | . . . 2 . . . 4 . 2 . . . 2 . . . 2 Power 1 | . . . . . . . . . . . . . . . . . 1 Propulsion 3 | . . . 1 . . . 1 . . . . . 1 . . . . Utility 6 | . . . . . . . 3 . 1 . . . 1 . . . 1 Weapon 2 | . . . 1 . . . . . 1 . . . . . . . . Parts Attached 181 | 6 8 2 13 7 7 1 17 9 1 9 5 12 2 6 7 16 53 Power 16 | 1 1 . 1 . . . 1 1 . . 1 1 . 1 . 1 7 Engine 2 | 1 . . 1 . . . . . . . . . . . . . . Core 6 | . 1 . . . . . 1 1 . . 1 . . . . . 2 Reactor 8 | . . . . . . . . . . . . 1 . 1 . 1 5 Propulsion 38 | 2 . . 4 3 2 1 2 . . 2 2 2 1 2 . 2 13 Treads 30 | 2 . . 4 3 2 1 2 . . 2 2 2 1 2 . 2 5 Leg 2 | . . . . . . . . . . . . . . . . . 2 Wheel 6 | . . . . . . . . . . . . . . . . . 6 Hover . | . . . . . . . . . . . . . . . . . . Flight . | . . . . . . . . . . . . . . . . . . Utility 69 | 1 2 . 3 1 2 . 9 4 1 4 1 7 1 3 3 8 19 Device 30 | . 1 . 1 . 1 . 5 2 . 2 . 2 1 . 2 2 11 Storage 3 | 1 1 . 1 . . . . . . . . . . . . . . Processor 5 | . . . . . . . 2 . . . . . . . . 1 2 Hackware 13 | . . . . . 1 . . 1 1 2 . 3 . 1 1 1 2 Protection 18 | . . . 1 1 . . 2 1 . . 1 2 . 2 . 4 4 Artifact . | . . . . . . . . . . . . . . . . . . Weapon 58 | 2 5 2 5 3 3 . 5 4 . 3 1 2 . . 4 5 14 Energy Gun 9 | 1 1 . . 1 . . 1 . . 1 . . . . 2 . 2 Energy Cannon 5 | . 1 . 1 . . . 1 . . . . . . . . . 2 Ballistic Gun 28 | 1 . . 2 2 2 . 1 3 . 2 1 1 . . 2 4 7 Ballistic Cannon 5 | . 2 1 1 . . . 1 . . . . . . . . . . Launcher 6 | . . 1 1 . 1 . 1 . . . . . . . . . 2 Special Weapon 5 | . 1 . . . . . . 1 . . . 1 . . . 1 1 Impact Weapon . | . . . . . . . . . . . . . . . . . . Slashing Weapon . | . . . . . . . . . . . . . . . . . . Piercing Weapon . | . . . . . . . . . . . . . . . . . . Special Melee Weapon . | . . . . . . . . . . . . . . . . . . Unidentified Prototypes 11 | . . . 2 1 . . 3 . . 1 1 . . . 3 . . Corrupted Parts 3 | . . . . . . . . . . . . . . . . . 3 System Corruption 19 | . . . . . . . . . . . . . . . . . 19 Parts Lost 66 | . 2 . 1 . 1 . 1 1 . 6 3 4 . . . 4 43 Power 10 | . 1 . 1 . . . . . . . 1 . . . . 1 6 Propulsion 19 | . . . . . . . . . . 3 1 2 . . . . 13 Utility 14 | . . . . . 1 . 1 . . . . 1 . . . 1 10 Weapon 23 | . 1 . . . . . . 1 . 3 1 1 . . . 2 14 Highest Loss Streak 16 | . 1 . 1 . 1 . 1 1 . 3 1 1 . . . 1 16 To Critical Strikes 1 | . . . . . . . . . . . . . . . . . 1 Average Backups 21 | 1 10 14 19 24 24 25 23 24 22 23 23 23 22 23 21 20 20 Power 1 | . 1 1 . 1 1 1 1 1 2 2 1 1 2 2 2 1 1 Propulsion 4 | . 4 3 5 6 6 6 5 6 6 4 3 3 3 3 3 3 3 Utility 8 | . 2 3 7 9 9 10 8 9 8 9 9 9 8 8 7 8 8 Weapon 6 | . 2 5 6 8 7 8 7 6 5 6 7 7 9 9 8 7 6 Tool/Special . | . . . . . . . . . . . . . . . . . . Unused Backups 80 | . 4 3 11 3 2 . 9 8 . 5 2 4 1 2 3 9 14 Power 13 | . . 1 . . . . 2 . . 1 2 1 . 1 . 3 2 Propulsion 12 | . 1 1 4 1 . . . . . . . . . . 2 2 1 Utility 25 | . 1 1 5 2 1 . 1 4 . 2 . 2 1 . . . 5 Weapon 30 | . 2 . 2 . 1 . 6 4 . 2 . 1 . 1 1 4 6 Tool/Special . | . . . . . . . . . . . . . . . . . . Average Slot Usage (%) 95 | . 92 100 98 99 99 100 97 100 99 99 97 97 98 83 86 87 87 Engine 3 | . 6 . 10 11 11 11 2 . . . . . . . . . . Core 3 | . 7 14 . . . . 4 7 6 6 5 5 5 1 . . 3 Reactor 1 | . . . . . . . . . . . . . . 3 5 5 6 Treads 25 | . 27 28 32 33 33 33 30 30 26 25 24 24 28 26 17 17 14 Device 7 | . 7 14 10 . . . 7 4 9 10 13 7 10 1 10 5 12 Storage 8 | . 14 14 11 11 11 11 7 7 6 6 6 6 5 5 5 5 5 Processor 7 | . . . . . . . 11 15 13 13 13 13 11 11 11 11 13 Hackware 1 | . . . . . 3 . . 2 2 4 4 3 5 2 4 5 1 Protection 5 | . . . . 11 6 11 7 7 5 3 1 6 4 5 5 9 6 Energy Gun 2 | . 5 14 1 . . . 1 7 4 4 . . . . 4 4 2 Energy Cannon 3 | . . . 9 11 7 11 6 1 . . . . . . . . 3 Ballistic Gun 16 | . 12 . 12 21 25 22 14 12 19 20 24 22 17 21 15 16 13 Ballistic Cannon 1 | . 7 14 8 . . . . . . . . . . . . . . Peak Build Rating 115 | 6 15 17 23 23 23 21 41 49 55 69 67 70 68 96 96 100 115 Average Rating 51 | 4 9 15 20 21 21 21 35 42 54 62 64 63 65 78 87 96 104 On Entrance 44 | . 6 15 17 21 22 21 21 40 49 53 66 61 61 66 96 96 96 Naked Turns . | . . . . . . . . . . . . . . . . . . Heaviest Build 188 | 12 33 33 99 102 102 102 112 119 122 122 115 120 113 160 131 135 188 Greatest Support 175 | 40 40 40 66 66 63 60 83 83 83 100 108 101 114 163 163 170 175 Greatest Overweight (x) 30 | . . . 1 1 1 1 1 1 1 2 1 1 1 1 . . 30 Average Overweight (x) . | . . . . 1 1 1 1 1 1 1 . 1 . . . . . Largest Inventory Capacity 25 | 8 15 15 25 25 25 25 25 25 25 25 25 25 25 25 25 25 25 Average Capacity 23 | 7 13 15 21 25 25 25 25 25 25 25 25 25 25 25 25 25 25 Most Carried 25 | 3 15 15 25 25 25 25 25 25 24 25 25 25 25 25 25 25 25 Average Carried 22 | 1 10 14 20 24 24 25 23 24 23 24 24 24 23 24 24 24 23 Final Capacity 25 | 8 15 15 25 25 25 25 25 25 25 25 25 25 25 25 25 25 25 Final Carried 25 | 3 15 15 25 25 25 25 25 25 24 25 23 25 24 25 25 25 19 Class Distribution -------------------- 23% | Scavenger-Tank 21% | Gunner 14% | Commander-Tank 12% | Mutant 9% | Bothacker-Gunner 8% | Scavenger-Gunner 5% | Commander-Gunner 3% | Tank Dominant Class ---------------- Mutant | -10/Materials Mutant | -10/Mines Gunner | -9/Materials Tank | -9/Storage Commander-Tank | -9/Garrison Commander-Tank | -9/Recycling Commander-Gunner | -7/Factory Gunner | -7/Garrison Gunner | -6/Factory Scavenger-Gunner | -6/Garrison Bothacker-Gunner | -6/Factory Bothacker-Gunner | -6/Garrison Bothacker-Gunner | -5/Factory Scavenger-Gunner | -5/Waste Scavenger-Tank | -5/Factory Scavenger-Tank | -5/Garrison Scavenger-Tank | -4/Factory Resources | -11 -10 -10 -9 -9 -9 -9 -7 -7 -6 -6 -6 -6 -5 -5 -5 -5 -4 ----------- Run | Yrd Mat Min Mat Sto Gar Rec Fac Gar Fac Gar Fac Gar Fac Was Fac Gar Fac Matter Collected 11571 | 254 546 129 565 291 351 74 312 467 367 966 361 1079 200 1033 196 939 3441 Remotely 1825 | . . . . . . . . . . . . 219 . . . 327 1279 Salvage Created 16369 | 74 725 141 994 617 481 51 367 640 652 1019 526 992 . 1489 342 1552 5707 Parts 798 | 3 56 11 75 34 25 4 13 27 29 39 20 49 . 23 8 68 314 Haulers Intercepted 12 | . 1 . 3 2 . . 3 . 1 . 1 . . . 1 . . Recyclers Shooed 12 | . 1 . 1 1 . 1 1 . 1 . 3 . . . . . 3 Parts Field Recycled . | . . . . . . . . . . . . . . . . . . Retrieved Matter . | . . . . . . . . . . . . . . . . . . Parts Self-Destructed . | . . . . . . . . . . . . . . . . . . Prevented . | . . . . . . . . . . . . . . . . . . Kills | -11 -10 -10 -9 -9 -9 -9 -7 -7 -6 -6 -6 -6 -5 -5 -5 -5 -4 ------- Run | Yrd Mat Min Mat Sto Gar Rec Fac Gar Fac Gar Fac Gar Fac Was Fac Gar Fac Combat Hostiles Destroyed 239 | . 17 4 23 6 10 1 3 15 6 26 4 16 . 5 2 26 75 Guns 172 | . 10 . 5 2 10 . 2 10 6 26 4 16 . 5 2 26 48 Cannons 36 | . 6 1 10 4 . 1 1 1 . . . . . . . . 12 AOE 29 | . 1 3 8 . . . . 4 . . . . . . . . 13 Classes Destroyed 21 | 1 6 1 2 2 1 . . 2 1 2 . . . 1 . 2 . Worker 17 | . 1 . . 1 . . 1 . 2 . . . . . . . 12 Builder 18 | . . . 2 . . . . . . . . . . . . . 16 Tunneler 4 | . . 2 . . . . . . 1 . . . . . . . 1 Hauler 12 | . 1 . 3 2 . . 3 . 1 . 1 . . . 1 . . Recycler 18 | 1 1 1 3 2 . . . . 1 . 2 . . . 1 . 6 Mechanic 3 | . . . . 1 . . . . . . . . . . . . 2 Operator 5 | . 3 . . . . . . . 1 . . . . . . . 1 Watcher 4 | . 2 . 2 . . . . . . . . . . . . . . Swarmer 62 | . 6 4 10 . 1 . . 4 . 10 1 . . . . 7 19 Cutter 2 | . . . . . . . . . . 2 . . . . . . . Grunt 95 | . 11 . 7 2 5 . 2 9 3 10 2 10 . . 2 10 22 Brawler 8 | . . . . . 4 . . 1 . . . . . . . 1 2 Duelist 7 | . . . . 1 . . . . 1 . . 1 . . . . 4 Protector 1 | . . . . . . . . . . . . . . . . 1 . Sentry 28 | . . . 6 3 1 1 1 . . 1 1 3 . . . 4 7 Demolisher 1 | . . . . . . . . . . . . . . . . 1 . Specialist 2 | . . . . . . . . . 2 . . . . . . . . Hunter 7 | . . . . . . . . 1 . . . . . . . . 6 Programmer 22 | . . . . . . . . 1 . 1 . 3 . . . 2 15 Behemoth 3 | . . . . . . . . . . 2 . . . . . 1 . Compactor 5 | . . . . . . . . . . . . . . 5 . . . Best Kill Streak 10 | 1 3 4 6 3 3 1 3 4 9 6 2 3 . 1 2 5 10 Combat Bots Only 6 | . 3 3 5 3 3 1 2 4 3 6 1 3 . 1 2 5 6 Max Kills in Single Turn 5 | 1 2 3 3 2 2 1 2 2 2 2 1 1 . 1 1 2 5 Gunslinging 1 | . . . . . 1 . . 1 . 1 . . . . . 1 . Exploded 4 | . 1 2 3 . . . . 2 . . . . . . . . 4 Melee . | . . . . . . . . . . . . . . . . . . Uniques/NPCs Destroyed . | . . . . . . . . . . . . . . . . . . Combat | -11 -10 -10 -9 -9 -9 -9 -7 -7 -6 -6 -6 -6 -5 -5 -5 -5 -4 -------- Run | Yrd Mat Min Mat Sto Gar Rec Fac Gar Fac Gar Fac Gar Fac Was Fac Gar Fac Hostile Shots Fired 1398 | . 55 12 71 6 38 5 25 55 16 99 53 151 . . 8 85 719 Missed 425 | . 11 4 20 . 12 2 15 19 6 22 17 59 . . 2 20 216 Hits 973 | . 44 8 51 6 26 3 10 36 10 77 36 92 . . 6 65 503 Melee 10 | . . . . . 1 . . . . 1 . . . . . . 8 Projectile 963 | . 44 8 51 6 25 3 10 36 10 76 36 92 . . 6 65 495 AOE 5 | . . . . . . . . . . 1 . . . . . 4 . Critical Strikes 28 | . . 1 2 . . . . 1 . . . 1 . . 1 3 19 Part Disruptions 5 | . 1 . . . . . . . 1 . 1 . . . . 1 1 Damage Taken 16245 | . 579 59 684 176 337 67 170 581 160 1400 359 939 . . 115 1629 8990 Core 1978 | . 66 6 143 . 28 . 16 14 . 195 47 84 . . . 224 1155 Absorbed by Shields 696 | . . . . . . . 38 62 5 211 70 69 . . . . 241 Reduced by Siege Mode 27 | . . . . . . . . . . . . . . . . . 27 Ignored by Resistances 407 | . . . . . . . . . . . . . . . . . 407 Regen/Repaired (Parts) 797 | . 74 . . . . . . . 108 . . . . . . . 615 Core Remaining (%) 76 | 100 . 71 . . . 57 . 95 . . . 61 . . . 77 . Volleys Fired 776 | 6 61 13 59 22 34 4 16 42 25 83 30 61 2 48 8 58 204 Largest 4 | 2 2 2 3 3 3 3 3 3 4 4 4 4 1 4 4 4 4 Hottest 254 | 60 100 98 124 114 114 116 128 140 165 170 113 176 5 123 181 183 254 Shots Fired 2044 | 12 110 25 163 65 73 12 47 81 80 209 80 164 2 130 19 194 578 Gun 1626 | 12 74 12 78 43 56 8 33 65 74 183 67 154 . 124 16 188 439 Cannon 314 | . 33 11 79 22 16 4 14 5 3 . 9 . . . . . 118 Launcher 33 | . . 2 6 . 1 . . 6 . . . . . . . . 18 Special 71 | . 3 . . . . . . 5 3 26 4 10 2 6 3 6 3 Kinetic 1446 | 6 77 11 104 43 56 8 31 38 60 145 67 151 . 124 11 137 377 Thermal 464 | . 6 12 53 22 16 4 16 32 17 38 9 3 . . 5 51 180 Explosive 19 | . . 2 6 . 1 . . 6 . . . . . . . . 4 Electromagnetic 47 | 6 27 . . . . . . . . . . . . . . . 14 Robot Hit Streak 24 | 5 9 5 11 12 10 5 6 15 11 24 15 11 8 24 8 14 19 Robot Miss Streak 9 | 1 2 7 4 3 3 2 3 5 4 5 2 4 . 2 2 3 9 Penetration Max 1 | . . . . . . . . 1 1 . 1 1 . 1 . 1 1 Secondary Targets 27 | . 1 . . . 2 . . 1 1 8 . 1 . . . 6 7 Max Gunslinging Chain 1 | . 1 . . . 1 . . 1 1 1 . 1 . . . 1 1 Shots Hit Robots 1204 | 9 60 8 92 36 32 5 26 49 53 133 51 100 2 109 12 116 311 Core Hits 673 | 2 35 7 39 15 21 3 13 37 31 59 27 38 . 21 8 58 259 Critical Kills 25 | . . . . . . . . . . 2 1 1 . . . 8 13 Critical Parts Destroyed 28 | . 1 . . . . . . . . . . 2 . . . 9 16 Critical Strikes 67 | . 4 . 2 . . . . . . 4 1 4 . 2 . 20 30 Burn 3 | . . . . . . . . . . 2 . 1 . . . . . Destroy 59 | . 1 . . . . . . . . 2 1 3 . 2 . 20 30 Blast 3 | . 1 . 2 . . . . . . . . . . . . . . Corrupt 2 | . 2 . . . . . . . . . . . . . . . . Melee Attacks . | . . . . . . . . . . . . . . . . . . Impact . | . . . . . . . . . . . . . . . . . . Slashing . | . . . . . . . . . . . . . . . . . . Piercing . | . . . . . . . . . . . . . . . . . . Sneak Attacks . | . . . . . . . . . . . . . . . . . . Combat Hostiles . | . . . . . . . . . . . . . . . . . . Follow-up Attacks . | . . . . . . . . . . . . . . . . . . Damage Inflicted 31191 | 119 999 319 2232 698 646 138 572 1388 1193 2295 1069 2074 . 2468 214 2718 12049 Guns 21791 | 119 576 47 716 362 561 53 387 927 1184 2295 1057 2074 . 2468 214 2718 6033 Cannons 4127 | . 360 88 950 327 . 61 174 28 . . . . . . . . 2139 Explosions 5120 | . 52 167 566 . 85 . . 433 . . . . . . . . 3817 Melee . | . . . . . . . . . . . . . . . . . . Ramming 153 | . 11 17 . 9 . 24 11 . 9 . 12 . . . . . 60 Kinetic 18546 | 53 650 88 1038 362 561 53 318 421 869 1627 1057 2056 . 2468 123 1888 4914 Thermal 7840 | . 88 47 628 327 . 61 243 534 315 668 . 18 . . 91 830 3990 Explosive 3305 | . . 167 566 . 85 . . 433 . . . . . . . . 2054 Electromagnetic 1347 | 66 250 . . . . . . . . . . . . . . . 1031 Impact . | . . . . . . . . . . . . . . . . . . Slashing . | . . . . . . . . . . . . . . . . . . Piercing . | . . . . . . . . . . . . . . . . . . Highest Corruption 31 | . 6 6 . 2 3 3 2 2 . . . 2 . 5 5 7 31 Average Corruption 4 | . 3 6 . 2 2 3 1 2 . . . 1 . 5 5 6 8 Corruption Purged 1 | . . . . . . . . . . . . . . . . . 1 Corruption Blocked . | . . . . . . . . . . . . . . . . . . Effects 264 | . 14 25 . 12 19 23 6 14 . . . 19 . 7 3 38 84 Message Errors 62 | . 3 5 . 3 6 6 2 1 . . . 5 . 2 1 10 18 Matter Fused 59 | . 4 2 . 4 4 6 . 5 . . . 6 . 1 1 7 19 Heat Flow Errors 34 | . 1 2 . 1 4 5 2 2 . . . 2 . 1 . 2 12 Energy Discharges 24 | . . 4 . . 1 2 . 3 . . . 2 . 1 . 3 8 Parts Rejected 6 | . 1 . . 1 1 . . . . . . . . 1 . . 2 Parts Fused 2 | . . . . 1 . . . . . . . . . 1 . . . Data Loss (minor) 35 | . 3 9 . 1 1 3 2 1 . . . 3 . . 1 7 4 Data Loss (major) 11 | . 1 1 . . 1 1 . 1 . . . 1 . . . 3 2 Misfires 8 | . 1 1 . . 1 . . . . . . . . . . . 5 Alerts 4 | . . 1 . . . . . 1 . . . . . . . . 2 Misdirections 2 | . . . . . . . . . . . . . . . . . 2 Weapon Failures 17 | . . . . 1 . . . . . . . . . . . 6 10 Overload Shots 1 | . . . . . . . . . . . 1 . . . . . . Overflow Damage 408 | . . . 22 . . . . 30 . . . . . . . . 356 Projectiles 103 | . . . 11 . . . . . . . . . . . . . 92 Explosions 305 | . . . 11 . . . . 30 . . . . . . . . 264 Melee . | . . . . . . . . . . . . . . . . . . Knockbacks 4 | . 2 1 1 . . . . . . . . . . . . . . Impact . | . . . . . . . . . . . . . . . . . . Kinetic 4 | . 2 1 1 . . . . . . . . . . . . . . Secondary . | . . . . . . . . . . . . . . . . . . Self-Inflicted Damage 335 | . . . 31 . 41 . . 33 . . . . . . . . 230 Shots 16 | . . . 1 . 1 . . 1 . . . . . . . . 13 Rammed 19 | . 2 2 . 2 . 4 1 . 2 . 1 . . . . . 5 Targets Rammed 20 | . 2 2 . 2 . 4 1 . 2 . 1 . . . . . 6 Kicked . | . . . . . . . . . . . . . . . . . . Crushed 1 | . . . . . . . . . . . . . . . . . 1 Highest Temperature 435 | . 132 241 169 292 187 251 161 268 63 81 4 272 . 336 21 252 435 Average Temperature 78 | . 22 117 25 91 42 83 60 92 22 32 2 113 . 163 14 31 95 Received Heat Transfer 2914 | . 174 . 189 30 78 18 21 222 51 228 76 288 . . 72 291 1176 Effects 8 | . . . . . . . . . . . . . . 4 . . 4 Shutdowns 1 | . . . . . . . . . . . . . . . . . 1 Energy Bleed 1 | . . . . . . . . . . . . . . . . . 1 Interference 5 | . . . . . . . . . . . . . . 3 . . 2 Damage (minor) 1 | . . . . . . . . . . . . . . 1 . . . Siege Activations 2 | . . . . . . . . . . . . . . . . 1 1 Total Turns 18 | . . . . . . . . . . . . . . . . 4 14 Longest Duration 14 | . . . . . . . . . . . . . . . . 4 14 Martial Activations . | . . . . . . . . . . . . . . . . . . Shielding Activations . | . . . . . . . . . . . . . . . . . . Robots Disrupted . | . . . . . . . . . . . . . . . . . . Combat Hostiles . | . . . . . . . . . . . . . . . . . . Robots Corrupted 2 | . . . . . . . . . . . . . . . . . 2 Combat Hostiles 2 | . . . . . . . . . . . . . . . . . 2 Parts Fried 8 | . . . . . . . . . . . . . . . . . 8 Impact Corruptions . | . . . . . . . . . . . . . . . . . . Robots Melted . | . . . . . . . . . . . . . . . . . . Combat Hostiles . | . . . . . . . . . . . . . . . . . . Parts Melted 19 | . . . . . . 1 . 2 . 4 . 1 . . 4 1 6 Heat Transferred 12119 | . 124 111 1221 592 . 111 446 1162 725 1775 . 150 . . 200 1167 4335 Parts Sabotaged 4 | . . . . . . . . . . . . . . . . . 4 Parts Stolen . | . . . . . . . . . . . . . . . . . . Parts Stripped . | . . . . . . . . . . . . . . . . . . Power Chain Reactions 2 | . 1 . . . . . . . . . . . . . . . 1 Alert | -11 -10 -10 -9 -9 -9 -9 -7 -7 -6 -6 -6 -6 -5 -5 -5 -5 -4 ------- Run | Yrd Mat Min Mat Sto Gar Rec Fac Gar Fac Gar Fac Gar Fac Was Fac Gar Fac Maximum Alert Level 5 | . . . 1 . 3 2 3 3 3 5 4 4 3 1 . 3 5 Low Security (%) 26 | 100 100 100 66 100 18 12 . . . . . . . 82 100 15 . Level 1 22 | . . . 33 . 53 82 1 6 . . . . . 17 . 36 38 Level 2 23 | . . . . . 11 4 89 39 89 15 . . 40 . . 41 42 Level 3 16 | . . . . . 17 . 8 54 10 45 73 38 59 . . 6 7 Level 4 9 | . . . . . . . . . . 27 26 61 . . . . 8 Level 5 1 | . . . . . . . . . . 10 . . . . . . 3 High Security . | . . . . . . . . . . . . . . . . . . Max Security . | . . . . . . . . . . . . . . . . . . Peak Influence 1695 | . 105 96 285 179 882 438 754 1019 830 1695 1231 1484 779 227 41 777 1628 Initial 889 | . . 31 4 114 27 396 417 399 534 569 889 833 779 227 7 3 407 Average 504 | . 48 22 167 56 394 257 615 695 557 1024 1052 1140 716 114 17 397 606 Influence Increases 11599 | 5 576 160 746 438 1085 334 1080 630 578 1246 562 711 . 18 55 857 2518 Destroy 0b10 Robot/C 5785 | . 340 80 460 240 600 100 280 320 340 740 260 320 . . 40 540 1125 Destroy 0b10 Robot/NC 437 | 5 40 15 50 30 . 5 40 . 50 . 35 . . . 10 5 152 Destroy Leader 886 | . 86 20 130 84 40 . 76 30 66 10 56 30 . . 2 40 216 Allied During Kill 771 | . . . . 78 158 31 106 9 78 122 159 1 . . 1 28 . Successful Hack 245 | . 26 . 8 6 40 16 . 14 36 14 . . . . . 20 65 Select Force Hacks 210 | . 30 . . . . 180 . . . . . . . . . . . Disable Machine 741 | . 30 . 75 . . . 195 . . 15 45 45 . . . . 336 Anti-Garrison Action 1038 | . . . . . 200 . . 200 . 250 . 250 . . . 138 . Destroy Structure 860 | . 9 15 23 . 47 2 33 27 8 50 7 35 . 18 2 44 540 Advance Influence 350 | . . . . . . . 350 . . . . . . . . . . Partial Spotted 24 | . . . . . . . . . . . . . . . . . 24 Lose Combat Pursuer 252 | . 15 30 . . . . . 30 . 45 . 30 . . . 42 60 Influence Decreases 10133 | 5 494 230 487 666 246 1054 671 182 783 365 1066 418 835 656 61 85 1829 Entered New Map 4382 | . . 51 8 157 16 486 95 172 485 245 806 358 705 422 4 2 370 Time Decay 4108 | 5 474 179 469 339 . 568 446 . 278 . 230 . 130 214 57 . 719 Lost Part 660 | . 20 . 10 . 10 . 10 10 . 60 30 40 . . . 40 430 Lost Ally 533 | . . . . 20 220 . 120 . 20 60 . 20 . 20 . 43 10 Purge Threat 450 | . . . . 150 . . . . . . . . . . . . 300 Squads Dispatched 37 | . 4 . 3 . . . 6 . 5 . 1 . . . . . 18 Investigation 9 | . 3 . 2 . . . 1 . . . . . . . . . 3 Extermination 9 | . . . . . . . 2 . . . . . . . . . 7 Reinforcement 13 | . 1 . 1 . . . . . 4 . 1 . . . . . 6 Assault 2 | . . . . . . . . . . . . . . . . . 2 Garrison 4 | . . . . . . . 3 . 1 . . . . . . . . Intercept . | . . . . . . . . . . . . . . . . . . Searches Triggered . | . . . . . . . . . . . . . . . . . . Construction Impeded 1 | . . . . . . . . . 1 . . . . . . . . Haulers Reinforced 4 | . . . . . . . . . 1 . 1 . . . . . 2 Active Scanning Responses . | . . . . . . . . . . . . . . . . . . Cargo Convoy Interrupts . | . . . . . . . . . . . . . . . . . . Alert ID Control Effect 2 | . . . . . . . . . . . . 2 . . . . . Stealth | -11 -10 -10 -9 -9 -9 -9 -7 -7 -6 -6 -6 -6 -5 -5 -5 -5 -4 --------- Run | Yrd Mat Min Mat Sto Gar Rec Fac Gar Fac Gar Fac Gar Fac Was Fac Gar Fac Distress Signals 13 | . 2 . 2 2 . . . . . . 1 . . . . . 6 Communications Jammed 32 | . . . . . . . . . . . . . . . . . 32 Distress Signals 30 | . . . . . . . . . . . . . . . . . 30 Times Spotted 375 | . 25 5 32 10 27 6 8 22 20 38 13 21 . 6 2 34 106 Peak Tracking Total 7 | . 4 3 6 2 4 3 2 5 5 5 3 5 . 5 2 6 7 Tactical Retreats 14 | . 1 1 . . . . . 2 . 2 . 1 . . . 2 5 Traps | -11 -10 -10 -9 -9 -9 -9 -7 -7 -6 -6 -6 -6 -5 -5 -5 -5 -4 ------- Run | Yrd Mat Min Mat Sto Gar Rec Fac Gar Fac Gar Fac Gar Fac Was Fac Gar Fac Traps Triggered 31 | . 5 . 1 1 5 . . 4 . 4 . 2 2 . . 1 6 Indirectly . | . . . . . . . . . . . . . . . . . . Trap Hack Attempts . | . . . . . . . . . . . . . . . . . . Triggered . | . . . . . . . . . . . . . . . . . . Disarmed . | . . . . . . . . . . . . . . . . . . Reprogrammed . | . . . . . . . . . . . . . . . . . . Reused . | . . . . . . . . . . . . . . . . . . Traps Extracted . | . . . . . . . . . . . . . . . . . . Installed . | . . . . . . . . . . . . . . . . . . Triggered . | . . . . . . . . . . . . . . . . . . Machines | -11 -10 -10 -9 -9 -9 -9 -7 -7 -6 -6 -6 -6 -5 -5 -5 -5 -4 ---------- Run | Yrd Mat Min Mat Sto Gar Rec Fac Gar Fac Gar Fac Gar Fac Was Fac Gar Fac Machines Disabled 68 | . 3 . 5 . 2 . 13 2 . 5 3 6 . . . 1 28 Max in Single Turn 9 | . 1 . 1 . 1 . . 1 . 1 1 1 . . . 1 9 Garrison Access 2 | . . . . . . . . . . . . . . . . . 2 Garrison Relay 11 | . . . . . 2 . . 2 . 3 . 3 . . . 1 . Machines Repaired . | . . . . . . . . . . . . . . . . . . Machines Dismantled . | . . . . . . . . . . . . . . . . . . Machines Sabotaged . | . . . . . . . . . . . . . . . . . . Overloaded Fab Kills . | . . . . . . . . . . . . . . . . . . Hacking | -11 -10 -10 -9 -9 -9 -9 -7 -7 -6 -6 -6 -6 -5 -5 -5 -5 -4 --------- Run | Yrd Mat Min Mat Sto Gar Rec Fac Gar Fac Gar Fac Gar Fac Was Fac Gar Fac Machines Accessed 60 | . 9 1 5 5 3 12 3 1 4 1 1 . . . 1 3 11 Terminals 40 | . 7 . 5 4 3 6 1 1 2 1 . . . . . 3 7 Fabricators 2 | . . . . . . . 1 . . . . . . . . . 1 Repair Stations 3 | . 1 . . . . . . . 1 . . . . . . . 1 Recycling Units 7 | . 1 . . . . 6 . . . . . . . . . . . Scanalyzers . | . . . . . . . . . . . . . . . . . . Garrison Access 7 | . . . . 1 . . 1 . 1 . 1 . . . 1 . 2 Total Hacks 121 | . 25 1 11 10 5 19 4 1 10 1 1 . . . 1 7 25 Successful 61 | . 13 1 2 7 3 11 2 1 4 1 1 . . . 1 2 12 Failed 60 | . 12 . 9 3 2 8 2 . 6 . . . . . . 5 13 Catastrophic 14 | . . . 2 . 1 2 . . 1 . . . . . . 2 6 Database Lockouts . | . . . . . . . . . . . . . . . . . . Manual 66 | . 14 . 8 7 2 20 . . 3 . . . . . . . 12 Terminals 90 | . 18 . 11 9 5 12 2 1 4 1 . . . . . 7 20 Fabricators 2 | . . . . . . . 1 . . . . . . . . . 1 Repair Stations 9 | . 2 . . . . . . . 5 . . . . . . . 2 Recycling Units 12 | . 5 . . . . 7 . . . . . . . . . . . Scanalyzers . | . . . . . . . . . . . . . . . . . . Garrison Access 7 | . . . . 1 . . 1 . 1 . 1 . . . 1 . 2 Terminal Hacks 17 | . 1 1 1 3 3 . . 1 . 1 . . . . . 2 4 Open Door 3 | . . 1 . 1 . . . . . . . . . . . 1 . Branch Access Points 2 | . . . 1 . . . . . . . . . . . . . 1 Emergency Access Points 2 | . . . . . 1 . . . . 1 . . . . . . . Unreport Threat 3 | . . . . 1 . . . . . . . . . . . . 2 Hauler Manifests 1 | . . . . 1 . . . . . . . . . . . . . Zone Layout 2 | . 1 . . . . . . . . . . . . . . . 1 Garrison Registry 3 | . . . . . 1 . . 1 . . . . . . . 1 . Security Stations 1 | . . . . . 1 . . . . . . . . . . . . Fabricator Hacks 2 | . . . . . . . 1 . . . . . . . . . 1 Network Status 2 | . . . . . . . 1 . . . . . . . . . 1 Repair Station Hacks 6 | . 2 . . . . . . . 2 . . . . . . . 2 Scan Component 3 | . 1 . . . . . . . 1 . . . . . . . 1 Repair 3 | . 1 . . . . . . . 1 . . . . . . . 1 Recycling Unit Hacks 1 | . 1 . . . . . . . . . . . . . . . . Retrieve Components 1 | . 1 . . . . . . . . . . . . . . . . Scanalyzer . | . . . . . . . . . . . . . . . . . . Garrison Access Hacks 7 | . . . . 1 . . 1 . 1 . 1 . . . 1 . 2 Unlock Access 5 | . . . . 1 . . 1 . 1 . 1 . . . 1 . . Seal Access 2 | . . . . . . . . . . . . . . . . . 2 Unauthorized Hacks 28 | . 9 . 1 3 . 11 . . 1 . . . . . . . 3 Terminals 21 | . 8 . 1 3 . 5 . . 1 . . . . . . . 3 Track 2 | . . . . 1 . . . . . . . . . . . . 1 Botnet 9 | . 3 . . 2 . 1 . . 1 . . . . . . . 2 Skim 10 | . 5 . 1 . . 4 . . . . . . . . . . . Fabricators . | . . . . . . . . . . . . . . . . . . Repair Stations . | . . . . . . . . . . . . . . . . . . Recycling Units 7 | . 1 . . . . 6 . . . . . . . . . . . Tunnel 7 | . 1 . . . . 6 . . . . . . . . . . . Scanalyzers . | . . . . . . . . . . . . . . . . . . Garrison Access . | . . . . . . . . . . . . . . . . . . Data Cores Recovered 2 | . 1 . . . . . . . 1 . . . . . . . . Used 1 | . . . . . . . . . 1 . . . . . . . . Hacking Detections 42 | . 9 . 4 2 2 5 1 1 4 . 1 . . . 1 3 9 Full Trace Events 11 | . 2 . 2 . . 1 1 . . . . . . . . 2 3 Feedback Events . | . . . . . . . . . . . . . . . . . . Feedback Blocked . | . . . . . . . . . . . . . . . . . . Robot Schematics Acquired . | . . . . . . . . . . . . . . . . . . Robots Built . | . . . . . . . . . . . . . . . . . . Authchips . | . . . . . . . . . . . . . . . . . . Time . | . . . . . . . . . . . . . . . . . . Total Robot Build Rating . | . . . . . . . . . . . . . . . . . . Part Schematics Acquired . | . . . . . . . . . . . . . . . . . . Parts Built . | . . . . . . . . . . . . . . . . . . Authchips . | . . . . . . . . . . . . . . . . . . Time . | . . . . . . . . . . . . . . . . . . Total Part Build Rating . | . . . . . . . . . . . . . . . . . . Parts Repaired 3 | . 1 . . . . . . . 1 . . . . . . . 1 Time 76 | . 26 . . . . . . . 22 . . . . . . . 28 Parts Recycled . | . . . . . . . . . . . . . . . . . . Recycled Matter . | . . . . . . . . . . . . . . . . . . Retrieved Matter . | . . . . . . . . . . . . . . . . . . Retrieved Components 1 | . 1 . . . . . . . . . . . . . . . . Parts Scanalyzed . | . . . . . . . . . . . . . . . . . . Part Schematics Acquired . | . . . . . . . . . . . . . . . . . . Parts Damaged . | . . . . . . . . . . . . . . . . . . Bothacking | -11 -10 -10 -9 -9 -9 -9 -7 -7 -6 -6 -6 -6 -5 -5 -5 -5 -4 ------------ Run | Yrd Mat Min Mat Sto Gar Rec Fac Gar Fac Gar Fac Gar Fac Was Fac Gar Fac Used RIF Installer 5 | . . . . . 1 . . 1 . 1 . 1 . . . 1 . Coupler Efficiency 1 | . . . . . . . . . . . . 1 . . . . . Command Fork 1 | . . . . . . . . 1 . . . . . . . . . Threat Obfuscator 1 | . . . . . . . . . . . . . . . . 1 . Alert ID Control 1 | . . . . . . . . . . 1 . . . . . . . Robots Hacked 31 | . . . . . . . . 4 2 5 1 6 1 6 1 3 2 Non-combat 5 | . . . . . . . . . 2 . . . 1 . . . 2 Combat 26 | . . . . . . . . 4 . 5 1 6 . 6 1 3 . Robot Hacks Applied 34 | . . . . . . . . 4 2 5 2 7 1 6 2 3 2 parse_system 1 | . . . . . . . . . . 1 . . . . . . . find_chute 2 | . . . . . . . . . 1 . . . 1 . . . . drop_inventory 1 | . . . . . . . . . 1 . . . . . . . . map_route 1 | . . . . . . . . . . . . . . . . . 1 ignore_targets 6 | . . . . . . . . . . . . . . 6 . . . find_garrison 2 | . . . . . . . . . . . 1 . . . 1 . . overload_power 1 | . . . . . . . . 1 . . . . . . . . . amplify_resonance 3 | . . . . . . . . . . 2 . 1 . . . . . overwrite_iff 15 | . . . . . . . . 3 . 1 1 6 . . 1 3 . streamctrl_high 1 | . . . . . . . . . . 1 . . . . . . . formatsys_low 1 | . . . . . . . . . . . . . . . . . 1 Relay Couplers Released 52 | . . . . . 7 . . 12 . 12 . 12 . . . 4 5 Machine Destruction 44 | . . . . . 7 . . 8 . 12 . 12 . . . 4 1 Programmers 8 | . . . . . . . . 4 . . . . . . . . 4 Attached 12 | . . . . . . . . 1 1 2 . 3 . 1 1 1 2 Fabnet Peak Effective % . | . . . . . . . . . . . . . . . . . . Robots Rewired 25 | . . . . . 9 6 . . . 9 . . 1 . . . . Allies Hacked . | . . . . . . . . . . . . . . . . . . Hacks Repelled . | . . . . . . . . . . . . . . . . . . Allies | -11 -10 -10 -9 -9 -9 -9 -7 -7 -6 -6 -6 -6 -5 -5 -5 -5 -4 -------- Run | Yrd Mat Min Mat Sto Gar Rec Fac Gar Fac Gar Fac Gar Fac Was Fac Gar Fac Total Allies 59 | . . . . 10 9 6 . 5 . 11 1 8 1 . 1 6 1 Largest Group 11 | . . . . 10 9 11 11 2 2 7 7 2 1 1 1 3 1 Highest-Rated Group 267 | . . . . 88 93 180 180 160 160 254 267 58 41 41 29 164 23 Highest-Rated Ally 85 | . . . . 16 21 27 27 80 80 85 41 29 41 41 29 80 23 Total Orders 11 | . . . . . 2 . . . . 5 . . . . . . 4 STAY 5 | . . . . . 1 . . . . 3 . . . . . . 1 FOLLOW 4 | . . . . . 1 . . . . 2 . . . . . . 1 AID 2 | . . . . . . . . . . . . . . . . . 2 Ally Attacks 393 | . . . . 26 88 21 60 17 40 44 31 17 . 17 5 27 . Total Damage 9980 | . . . . 239 1019 477 1489 258 1944 1668 658 248 . 821 96 1063 . Kills 95 | . . . . 6 20 5 17 1 15 12 13 2 . 1 . 3 . Allies Corrupted . | . . . . . . . . . . . . . . . . . . Allies Melted 1 | . . . . . 1 . . . . . . . . . . . . Intel | -11 -10 -10 -9 -9 -9 -9 -7 -7 -6 -6 -6 -6 -5 -5 -5 -5 -4 ------- Run | Yrd Mat Min Mat Sto Gar Rec Fac Gar Fac Gar Fac Gar Fac Was Fac Gar Fac Active Infowar (turns) 4220 | . . . . . . . 108 . . 1 211 80 266 7 144 163 3240 Terrain 1732 | . . . . . . . . . . . . . . . . . 1732 Spoofing 1 | . . . . . . . . . . 1 . . . . . . . Jamming 4195 | . . . . . . . 108 . . . 211 80 266 7 144 163 3216 Robot Analysis Total . | . . . . . . . . . . . . . . . . . . Derelict Logs Recovered 1 | . . 1 . . . . . . . . . . . . . . . Drone Launches . | . . . . . . . . . . . . . . . . . . Drone Recoveries . | . . . . . . . . . . . . . . . . . . Exploration | -11 -10 -10 -9 -9 -9 -9 -7 -7 -6 -6 -6 -6 -5 -5 -5 -5 -4 ------------- Run | Yrd Mat Min Mat Sto Gar Rec Fac Gar Fac Gar Fac Gar Fac Was Fac Gar Fac Turns Passed 19789 | 115 1413 823 1288 906 1489 1716 1103 1283 607 1633 485 1535 268 446 151 1152 3376 Spaces Moved 7884 | 56 687 484 498 304 520 679 417 461 206 526 166 530 157 135 64 553 1441 Core 5 | 4 . . . . . . . . . . . . . . . . 1 Treads 7745 | 52 687 484 498 304 520 679 417 461 206 526 166 530 157 135 64 553 1306 Legs 9 | . . . . . . . . . . . . . . . . . 9 Wheels 125 | . . . . . . . . . . . . . . . . . 125 Hover . | . . . . . . . . . . . . . . . . . . Flight . | . . . . . . . . . . . . . . . . . . Fastest Speed 50 | 50 160 160 160 240 240 240 240 240 240 240 160 240 160 160 160 160 140 Average Speed 202 | 152 160 160 203 240 240 240 240 240 240 240 224 240 161 187 160 160 165 Slowest Speed 1550 | 160 160 160 240 240 240 240 240 240 240 320 240 240 240 240 160 160 1550 Overloaded Moves . | . . . . . . . . . . . . . . . . . . Propulsion Burnouts . | . . . . . . . . . . . . . . . . . . Robots Hopped . | . . . . . . . . . . . . . . . . . . Potential Cave-ins 5 | . . . . . . . . . . . . . . . . . 5 Cave-ins Triggered . | . . . . . . . . . . . . . . . . . . Exploration Rate (%) 49 | 4 97 92 60 44 78 94 14 66 13 68 7 68 6 62 3 64 48 Regions Visited 17 Branch Regions 3 Pre-discovered Areas 8 | . 1 . . 1 . 6 . . . . . . . . . . . Known Exits Taken 6 | . . . 1 1 . . 1 . 1 . 1 . . . 1 . . Unknown Exits Taken 4 | 1 1 1 . . . 1 . . . . . . . . . . . Scrap Searched 3 | . . 3 . . . . . . . . . . . . . . . Spaces Dug 40 | . 2 . . . . . 1 2 1 1 2 . . . . . 31 Terrain Destroyed 407 | . 6 18 24 . 8 . 1 12 5 4 8 3 . 13 1 7 297 Melee . | . . . . . . . . . . . . . . . . . . Projectile 126 | . 3 . 1 . . . 1 . 5 4 8 3 . 13 1 7 80 AOE 275 | . 3 18 23 . 8 . . 12 . . . . . . . . 211 Terrain Rammed . | . . . . . . . . . . . . . . . . . . Walls Destroyed . | . . . . . . . . . . . . . . . . . . Machines Disabled . | . . . . . . . . . . . . . . . . . . Actions | -11 -10 -10 -9 -9 -9 -9 -7 -7 -6 -6 -6 -6 -5 -5 -5 -5 -4 --------- Run | Yrd Mat Min Mat Sto Gar Rec Fac Gar Fac Gar Fac Gar Fac Was Fac Gar Fac Total 10243 | 71 885 509 657 434 708 753 490 569 265 768 227 684 172 239 99 696 2017 Wait 631 | . 97 . 29 77 47 3 2 19 20 102 10 35 . 28 1 15 146 Move 7872 | 55 686 483 497 304 519 678 416 460 206 525 166 529 157 134 64 552 1441 Hop . | . . . . . . . . . . . . . . . . . . Pick Up 188 | 4 20 4 31 7 5 . 12 9 2 13 3 14 2 5 4 13 40 Fast Attach 102 | 5 4 . 5 3 4 . 10 2 1 4 1 5 4 5 5 9 35 Attach 86 | 1 3 . 3 1 1 . 4 2 2 6 1 7 3 1 4 4 43 Detach 41 | . 1 . 1 . . . 4 1 . 2 . 3 2 5 . 3 19 Swap 167 | . 4 2 9 5 9 1 6 15 6 17 11 15 . 3 4 19 41 Drop 195 | . 7 5 23 13 9 1 19 12 1 10 4 11 2 10 9 23 36 Fire 776 | 6 61 13 59 22 34 4 16 42 25 83 30 61 2 48 8 58 204 Melee . | . . . . . . . . . . . . . . . . . . Ram 2 | . . . . . . . . . . . . . . . . . 2 Kick . | . . . . . . . . . . . . . . . . . . Crush 18 | . 2 2 . 2 . 4 1 . 2 . 1 . . . . . 4 Escape Stasis 31 | . . . . . 8 . . 7 . 6 . 4 . . . . 6 Rewire 134 | . . . . . 72 62 . . . . . . . . . . . Trap . | . . . . . . . . . . . . . . . . . . Miscellaneous . | . . . . . . . . . . . . . . . . . . Route ------- -11/Scrapyard -10/Materials (discovered 5 exits: *Mat x3 / *Min x2) -10/Mines (discovered 3 exits: *Mat x2 / [*Sub]) -9/Materials (discovered 5 exits: [*Mat] / *Min x2 / *Sto x2) -9/Storage -9/Garrison (discovered 3 exits: *Rec x3) -9/Recycling -7/Factory (discovered 3 exits: *Fac / [*Low] / Gar) -7/Garrison (discovered 3 exits: *Fac x3) -6/Factory -6/Garrison (discovered 2 exits: *Fac x2) -6/Factory (discovered 3 exits: [*Fac x2] / Gar) -6/Garrison (discovered 3 exits: [*Fac x3]) -5/Factory -5/Waste -5/Factory -5/Garrison (discovered 3 exits: *Fac x3) -4/Factory (discovered 7 exits: [*Res x2] / Upp x2 / *Ext x2 / Arm) History --------- Turn | Location | Event 16 | -11/Scrapyard | Discovered new exit (range 15) 116 | -11/Scrapyard | Entered Materials 117 | -10/Materials | Met a group of wandering Federalists 186 | -10/Materials | Discovered new exit (range 15) 307 | -10/Materials | Build established: Mutant 534 | -10/Materials | Discovered new exit (range 6) 839 | -10/Materials | Discovered new exit (range 10) 845 | -10/Materials | Discovered new exit (range 15) 893 | -10/Materials | Repaired Lgt. Treads 1361 | -10/Materials | Discovered new exit (range 7) 1529 | -10/Materials | Entered Mines 1640 | -10/Mines | Discovered new exit (range 10) 1706 | -10/Mines | Learned location of 1 exit from Materials 1858 | -10/Mines | Discovered new exit (range 7) 1917 | -10/Mines | Found a damaged Exp. Sensor Array with a note attached 1920 | -10/Mines | Found Prototype Device 2117 | -10/Mines | Found a hidden stash of uninstalled traps 2172 | -10/Mines | Found the Drone Emporium 2180 | -10/Mines | Found Prototype Device 2230 | -10/Mines | Discovered new exit (range 15) 2352 | -10/Mines | Entered Materials 2352 | -9/Materials | Evolved 2 slots: Propulsion x1, Weapon x1 2353 | -9/Materials | Identified exit to Mines 2754 | -9/Materials | Build established: Gunner 2767 | -9/Materials | Identified exit to Storage 2768 | -9/Materials | Discovered new exit (range 3) 3640 | -9/Materials | Entered Storage 3953 | -9/Storage | Build established: Tank 4264 | -9/Storage | Assisted by bots powering up and referring to "LRC-V3" 4343 | -9/Storage | Learned location of Armory (-4) 4545 | -9/Storage | Identified exit to Garrison 4546 | -9/Storage | Entered Garrison 4546 | -9/Garrison | Accompanied by 9 allies 4556 | -9/Garrison | Build established: Commander-Tank 4587 | -9/Garrison | Garrison Relay disabled 4632 | -9/Garrison | Triggered checkpoint 4693 | -9/Garrison | Lost 4 allies 4694 | -9/Garrison | Garrison Relay disabled 4806 | -9/Garrison | Triggered checkpoint 4824 | -9/Garrison | Triggered checkpoint 4856 | -9/Garrison | Triggered checkpoint 4924 | -9/Garrison | Learned Recycling security intel 4970 | -9/Garrison | Triggered checkpoint 5035 | -9/Garrison | Discovered new exit (range 15) 5083 | -9/Garrison | Installed Relay Interface Framework 5207 | -9/Garrison | Build established: Gunner 5479 | -9/Garrison | Lost 3 allies 5599 | -9/Garrison | Discovered new exit (range 6) 5606 | -9/Garrison | Triggered checkpoint 5712 | -9/Garrison | Triggered checkpoint 5825 | -9/Garrison | Build established: Commander-Tank 5898 | -9/Garrison | Triggered checkpoint 5915 | -9/Garrison | Discovered new exit (range 11) 5998 | -9/Garrison | Discovered new exit (range 45) 5998 | -9/Garrison | Discovered new exit (range 91) 5998 | -9/Garrison | Discovered new exit (range 13) 6035 | -9/Garrison | Entered Recycling 6035 | -9/Recycling | Accompanied by 5 allies 6784 | -9/Recycling | Discovered new exit (range 5) 7640 | -9/Recycling | Scanned before Scraplab entrance 7751 | -9/Recycling | Entered Factory 7751 | -7/Factory | Accompanied by 11 allies 7751 | -7/Factory | Evolved 4 slots: Propulsion x1, Utility x3 7880 | -7/Factory | Garrison activated, responded to threat 8132 | -7/Factory | Build established: Commander-Gunner 8400 | -7/Factory | Discovered new exit (range 9) 8419 | -7/Factory | Discovered new exit (range 8) 8847 | -7/Factory | Identified exit to Garrison 8852 | -7/Factory | Build established: Gunner 8854 | -7/Factory | Entered Garrison 8854 | -7/Garrison | Accompanied by 1 ally 8905 | -7/Garrison | Triggered checkpoint 8932 | -7/Garrison | Garrison Relay disabled 9202 | -7/Garrison | Triggered checkpoint 9203 | -7/Garrison | Triggered checkpoint 9319 | -7/Garrison | Discovered new exit (range 8) 9345 | -7/Garrison | Discovered new exit (range 90) 9345 | -7/Garrison | Discovered new exit (range 6) 9345 | -7/Garrison | Discovered new exit (range 63) 9947 | -7/Garrison | Found embedded Infiltrators 9970 | -7/Garrison | Triggered checkpoint 9989 | -7/Garrison | Garrison Relay disabled 10102 | -7/Garrison | Expanded RIF knowledge: Command Fork 10137 | -7/Garrison | Entered Factory 10137 | -6/Factory | Accompanied by 2 allies 10137 | -6/Factory | Evolved 2 slots: Utility x1, Weapon x1 10415 | -6/Factory | Repaired Imp. Medium Armor Plating 10457 | -6/Factory | Found Scatter Rocket Array 10651 | -6/Factory | Garrison activated, responded to threat 10744 | -6/Factory | Identified exit to Garrison 10744 | -6/Factory | Entered Garrison 10744 | -6/Garrison | Accompanied by 1 ally 10784 | -6/Garrison | Triggered checkpoint 10901 | -6/Garrison | Garrison Relay disabled 10964 | -6/Garrison | Triggered checkpoint 11110 | -6/Garrison | Spotted B-75 Beast 11110 | -6/Garrison | Spotted B-75 Beast 11123 | -6/Garrison | Hijacked Beast 5a control node with streamctrl_high 11134 | -6/Garrison | Destroyed B-75 Beast 11188 | -6/Garrison | Destroyed Beast 5a 11206 | -6/Garrison | Lost 3 parts (1n2w) 11277 | -6/Garrison | Triggered checkpoint 11468 | -6/Garrison | Triggered checkpoint 11476 | -6/Garrison | Build established: Scavenger-Gunner 11764 | -6/Garrison | Found Relay Coupler [Proto] 11768 | -6/Garrison | Found Relay Coupler [Proto] 11788 | -6/Garrison | Triggered checkpoint 11795 | -6/Garrison | Discovered new exit (range 10) 11898 | -6/Garrison | Triggered checkpoint 12052 | -6/Garrison | Build established: Bothacker-Gunner 12192 | -6/Garrison | Triggered checkpoint 12231 | -6/Garrison | Expanded RIF knowledge: Alert ID Control 12274 | -6/Garrison | Garrison Relay disabled 12343 | -6/Garrison | Discovered new exit (range 15) 12377 | -6/Garrison | Entered Factory 12377 | -6/Factory | Accompanied by 6 allies 12551 | -6/Factory | Discovered new exit (range 6) 12595 | -6/Factory | Discovered new exit (range 8) 12862 | -6/Factory | Identified exit to Garrison 12862 | -6/Factory | Entered Garrison 12943 | -6/Garrison | Triggered checkpoint 12981 | -6/Garrison | Garrison Relay disabled 13124 | -6/Garrison | Triggered checkpoint 13354 | -6/Garrison | Expanded RIF knowledge: Coupler Efficiency 13402 | -6/Garrison | Triggered checkpoint 13453 | -6/Garrison | Garrison Relay disabled 13524 | -6/Garrison | Discovered new exit (range 10) 13660 | -6/Garrison | Triggered checkpoint 13813 | -6/Garrison | Discovered new exit (range 10) 13860 | -6/Garrison | Triggered checkpoint 14061 | -6/Garrison | Triggered checkpoint 14259 | -6/Garrison | Triggered checkpoint 14345 | -6/Garrison | Discovered new exit (range 10) 14362 | -6/Garrison | Garrison Relay disabled 14372 | -6/Garrison | Build established: Scavenger-Gunner 14397 | -6/Garrison | Entered Factory 14397 | -5/Factory | Evolved 2 slots: Propulsion x1, Utility x1 14528 | -5/Factory | Discovered new exit (range 15) 14665 | -5/Factory | Sucked down chute 14665 | -5/Factory | Entered Waste 14680 | -5/Waste | 1 allies followed down the chute 14680 | -5/Waste | EMP discharged 14693 | -5/Waste | Build established: Bothacker-Gunner 14707 | -5/Waste | Spotted C-40 Crusher 14708 | -5/Waste | Spotted C-40 Crusher 14710 | -5/Waste | Spotted C-40 Crusher 14710 | -5/Waste | Spotted C-40 Crusher 14715 | -5/Waste | Spotted C-40 Crusher 14733 | -5/Waste | Destroyed C-40 Crusher 14741 | -5/Waste | Spotted C-40 Crusher 14761 | -5/Waste | Allies destroyed C-40 Crusher 14768 | -5/Waste | Found Damper Plating 14780 | -5/Waste | EMP discharged 14871 | -5/Waste | Destroyed C-40 Crusher 14880 | -5/Waste | EMP discharged 14936 | -5/Waste | Destroyed C-40 Crusher 14965 | -5/Waste | Destroyed C-40 Crusher 14980 | -5/Waste | EMP discharged 15009 | -5/Waste | Destroyed C-40 Crusher 15033 | -5/Waste | Found Damper Plating 15080 | -5/Waste | EMP discharged 15087 | -5/Waste | Discovered new exit (range 15) 15111 | -5/Waste | Entered Factory 15262 | -5/Factory | Identified exit to Garrison 15262 | -5/Factory | Entered Garrison 15321 | -5/Garrison | Heavy support dispatched to Factory 15323 | -5/Garrison | Build established: Scavenger-Tank 15359 | -5/Garrison | Spotted B-75 Beast 15380 | -5/Garrison | Destroyed B-75 Beast 15400 | -5/Garrison | Triggered checkpoint 15428 | -5/Garrison | Triggered checkpoint 15586 | -5/Garrison | Triggered checkpoint 15687 | -5/Garrison | Spotted B-86 Titan 15786 | -5/Garrison | Triggered checkpoint 15840 | -5/Garrison | Triggered checkpoint 15860 | -5/Garrison | Garrison Relay disabled 15884 | -5/Garrison | Found embedded Infiltrators 15953 | -5/Garrison | Discovered new exit (range 12) 16013 | -5/Garrison | Triggered checkpoint 16086 | -5/Garrison | Discovered new exit (range 48) 16086 | -5/Garrison | Discovered new exit (range 33) 16086 | -5/Garrison | Discovered new exit (range 19) 16262 | -5/Garrison | Expanded RIF knowledge: Threat Obfuscation 16330 | -5/Garrison | Heavy support dispatched to Factory 16414 | -5/Garrison | Entered Factory 16414 | -4/Factory | Evolved 2 slots: Power x1, Utility x1 17568 | -4/Factory | Repaired Hvy. Treads 17609 | -4/Factory | Discovered new exit (range 13) 17713 | -4/Factory | Lost 3 parts (2u1w) 18139 | -4/Factory | Lost 3 parts (1p1u1w) 18433 | -4/Factory | Lost 4 parts (1p1n1u1w) 18793 | -4/Factory | Discovered new exit (range 12) 18914 | -4/Factory | First assault squad dispatched 19270 | -4/Factory | System corruption reached 10% 19334 | -4/Factory | Lost 6 parts (1p1n2u2w) 19358 | -4/Factory | Identified exit to Upper Caves 19358 | -4/Factory | Identified exit to Extension 19358 | -4/Factory | Identified exit to Armory 19775 | -4/Factory | System corruption reached 30% 19776 | -4/Factory | Core integrity fell below 50% 19784 | -4/Factory | Core integrity fell below 20% 19790 | -4/Factory | Destroyed by X-77 Beamer with Gatling Laser Last Messages --------------- 19772_ Adv. Heat Sink destroyed. 19772_ Knocked back. 19773_ U-05 Engineer lays Concrete. 19774_ Integrated Corrupted Wheel (+10). 19774_ Wheel destroyed. 19774_ Critical hit (Burn: +37). 19775_ Lgt. Antimatter Reactor destroyed. 19775_ U-05 Engineer lays Concrete. 19777_ X-77 Beamer destroyed. 19777_ U-05 Engineer builds a Wall. 19777_ Adv. Heat Sink destroyed. 19779_ U-05 Engineer lays Concrete. 19781_ X-77 Beamer IFF system glitched. 19781_ U-05 Engineer destroyed. 19782_ Penetrated by Slug. 19782_ Knocked back. 19783_ Acquired 3 matter. 19783_ U-05 Engineer lays Concrete. 19784_ U-05 Engineer builds a Wall. 19787_ System corrupted: Matter fused (-5). Map ----- +----------------------------------------------------+ | ??????????????????????????????????????????????#? | | ????????????????????????????????????????#?????#? | | ?????????????????????????????????????##???##?### | | ??????????????????????????????????????? ???#?#?? | | ??????????????????????????????????? ?? ##### | | ?????????????????????????????????# ? ??? #???? | | ???????????????????????????????????? ???"??##?## | | ??????????????????????????????????? ??""?" ?#### | | ??????????????????????????????????? ""? ???### | | ??????????????????????????????????? ???? ##?## | | ?????????????????????????????????#? ?? ##?#? | | ???????????????????????????????? ???#??##?###### | | ???????????????????????????????????? ???#??###?? | | ??????????????????????????????????###? #?######? | | ????????????????????????????????? #?## ###?###?# | | ???????????????????????????????? #?## ???###?## | | ??????????????????????????#"""? #?## ???#?###? | | ??????????????????????????#"""" #??# #?#??###? | | ??????????????????????????#"""" ####?###?#???# | | ??????????????????????????#"""" #??# ##??####? | | ??????????????????????????#"""" ##???#?#####?# | | ??????????????????????????# ####?#### ## | | ??????????????????????###?# ##?# #### " | | ???????????????????####;### #?## #### ## | | ???????????????????#; #;/####### ### ### | | ????????????????????# @ *[[=! % " ### ### | | ????????????????????# >gg*H=*== ### | | ????????????????????# ! x![%!%!%%u ####### | | ????????????????+ g %########## ####### | | ????????????????####### ###?###"######+#######? | | ??????????????????????# #??#??# # ### | | ??????????????????????# #?????# # + | | ??????????????????????# #??#### # # | | ??????????????????????# #????## # # | | ??????????????????????# ?#?#??# """ """ # # | | ??????????????????????# ?????## """ """ # # | | ??????????????????????# ???#### """ """ # # | | ??????????????????????# ?#??#?# #####" | | ??????????????????????# ???#?##"############## | | ??????????????????????# ######"######### ### ! | | ??????????????????????# " =% | | ??????????????????????# #### ##### | | ??????????????????????# ##### ## [ | | ??????????????????????# ##### ## ] [ | | ??????????????????????#+## ##### ## | | ???????????????????????? # ##### ## """ | | ?????????????????????????+ #####+###### | | ???????????????????????? ########## ##### | | ???????????????????????? ?######### ##### """" | | ???????????????????????????#???#### ##### """" | +----------------------------------------------------+ Best States ------------- Heat Dissipation 97 Energy Generation 39 Energy Capacity 565 Matter Stores 300 Matter Capacity 300 Sight Range 16 Terrain Scan Range 20 Terrain Scan Density 210 Jamming Range 16 Armor Coverage 1825 Resistance: TH 15 Resistance: EM 90 Evasion (%) 40 Targeting Accuracy 6 Core Analysis 6 Recoil Reduction 5 Offensive Hacking 10 Relay Coupler Types 2 Relay Coupler Value 64 Item Schematics ----------------- None Robot Schematics ------------------ None Fabricated ------------ Nothing Repaired ---------- Lgt. Treads | 47% | -10/Materials Imp. Medium Armor Plating | 55% | -6/Factory Hvy. Treads | 13% | -4/Factory Alien Tech Used ----------------- None Achievements -------------- None Challenges ------------ None Game ------ Seed ArmageddonHardcellDerivative Manual? 0 Play Time 02:44:49 Cumulative 138.6 hours Start 2025.07.24 @ 18:06:34 End 2025.07.25 @ 21:15:26 Sessions 5 Manual Loads 0 Difficulty Rogue Special Mode None Game No. 76 Rogue 76 Adventurer 0 Explorer 0 Win Type - Total 13 Types 3/1/4/1/1/0/0/1/0/2 Lore% 68 Gallery% 65 Achievement% 63 Wizard Run 0 Options --------- Layout 0 ASCII 0 Keyboard 1 Movement Vi Keybinds 0 Fullscreen 2 Font 18/SmallcapsGlow Map View 76x50 Zoom Use 0% Tactical HUD 1 Map Filters NONE Filters NONE Steam 1 RUN: 2a49f868-eb08-4ad3-94c6-5706bca77089